[Event "9th RTU Rapid 2019"]
[Site "Riga"]
[Date "2019.08.04"]
[Round "8.33"]
[White "Petrovskis, Olegs"]
[Black "Bogorad, Michail"]
[Result "1-0"]
[ECO "E91"]
[WhiteElo "2147"]
[BlackElo "1840"]
[Annotator "NA"]
[PlyCount "117"]
[EventDate "2019.08.05"]
[EventType "swiss"]
[EventCountry "LAT"]
[SourceTitle "playchess.com"]
[Source "ChessBase"]
[SourceQuality "1"]
[TimeControl "5400+30"]

1. d4 {[%emt 1:15:23]} Nf6 {[%emt 1:15:23]} 2. Nf3 {[%emt 0:00:26]} g6 {[%emt 0:00:28]} 3. c4 {[%emt 0:00:27]} Bg7 {[%emt 0:00:27]} 4. Nc3 {[%emt 0:00:26]} O-O {[%emt 0:00:28]} 5. e4 {[%emt 0:00:26]} d6 {[%emt 0:00:26]} 6. Be2 {[%emt 0:00:26]} Nbd7 {[%emt 0:00:26]} 7. h3 {[%emt 0:01:28]} c5 {[%emt 0:00:33]} 8. d5 {[%emt 0:00:28]} a6 {[%emt 0:00:27]} 9. O-O {[%emt 0:00:35]} Rb8 {[%emt 0:00:33]} 10. a4 {[%emt 0:00:26]} b6 {[%emt 0:00:31]} 11. Ne1 {[%emt 0:01:32]} Ne8 {[%emt 0:00:47]} 12. f4 {[%emt 0:00:37]} Bd4+ {[%emt 0:00:38]} 13. Kh1 {[%emt 0:00:34]} e6 {[%emt 0:00:33]} 14. Nc2 {[%emt 0:01:27]} Bg7 {[%emt 0:00:34]} 15. Ne3 {[%emt 0:00:44]} Ndf6 {[%emt 0:01:11]} 16. dxe6 {[%emt 0:00:52]} Bxe6 {[%emt 0:01:27]} 17. f5 {[%emt 0:01:25]} Bd7 {[%emt 0:00:28]} 18. Ned5 {[%emt 0:00:46]} Nxd5 {[%emt 0:00:46]} 19. Nxd5 {[%emt 0:00:34]} Bc6 {[%emt 0:00:54]} 20. Qc2 {[%emt 0:02:22]} Bxd5 {[%emt 0:00:30]} 21. cxd5 {[%emt 0:00:31]} Qe7 {[%emt 0:01:32]} 22. Bxa6 {[%emt 0:00:38]} Nf6 {[%emt 0:00:31]} 23. Bd3 {[%emt 0:00:59]} Nh5 {[%emt 0:00:35]} 24. Bf4 {[%emt 0:01:01]} Nxf4 {[%emt 0:00:34]} 25. Rxf4 {[%emt 0:00:26]} Qe5 {[%emt 0:00:26]} 26. Rf2 {[%emt 0:00:53]} Bh6 {[%emt 0:00:48]} 27. Raf1 {[%emt 0:00:44]} Be3 {[%emt 0:00:50]} 28. Rf3 {[%emt 0:00:35]} Bd4 {[%emt 0:00:37]} 29. b3 {[%emt 0:00:27]} Rbe8 {[%emt 0:01:26]} 30. Qc1 {[%emt 0:00:29]} Bb2 {[%emt 0:01:18]} 31. Qg5 {[%emt 0:00:46]} Bd4 {[%emt 0:01:28]} 32. h4 {[%emt 0:01:18]} Qg7 {[%emt 0:02:18]} 33. f6 {[%emt 0:01:49]} Qh8 {[%emt 0:00:26]} 34. g4 {[%emt 0:00:51]} Re5 {[%emt 0:00:25]} 35. Qh6 {[%emt 0:01:09]} Rfe8 {[%emt 0:01:21]} 36. g5 {[%emt 0:00:48]} Rxe4 {[%emt 0:00:58]} 37. Bxe4 {[%emt 0:00:44]} Rxe4 {[%emt 0:00:25]} 38. Kg2 {[%emt 0:00:37]} Re2+ {[%emt 0:00:28]} 39. Kh3 {[%emt 0:00:52]} Be5 {[%emt 0:00:30]} 40. R1f2 {[%emt 0:00:29]} Re4 {[%emt 0:00:38]} 41. Qg7+ {[%emt 0:00:55]} Qxg7 {[%emt 0:00:27]} 42. fxg7 {[%emt 0:00:26]} Bxg7 {[%emt 0:00:45]} 43. Rxf7 {[%emt 0:00:29]} Rd4 {[%emt 0:00:39]} 44. R2f3 {[%emt 0:00:38]} Rxd5 {[%emt 0:00:34]} 45. Rb7 {[%emt 0:00:26]} Be5 {[%emt 0:00:58]} 46. h5 {[%emt 0:01:10]} gxh5 {[%emt 0:00:36]} 47. Kh4 {[%emt 0:00:27]} Rd4+ {[%emt 0:00:59]} 48. Kxh5 {[%emt 0:00:27]} Rb4 {[%emt 0:00:29]} 49. g6 {[%emt 0:00:56]} hxg6+ {[%emt 0:00:32]} 50. Kxg6 {[%emt 0:00:27]} Rg4+ {[%emt 0:00:30]} 51. Kf5 {[%emt 0:00:28]} Rg7 {[%emt 0:00:53]} 52. Rxg7+ {[%emt 0:00:28]} Kxg7 {[%emt 0:00:26]} 53. Ke6 {[%emt 0:00:26]} Kg6 {[%emt 0:00:39]} 54. Rd3 {[%emt 0:00:42]} Kg5 {[%emt 0:00:29]} 55. Rxd6 {[%emt 0:00:38]} Bxd6 {[%emt 0:00:36]} 56. Kxd6 {[%emt 0:00:26]} Kf5 {[%emt 0:00:25]} 57. Kc6 {[%emt 0:00:25]} Ke5 {[%emt 0:00:27]} 58. Kxb6 {[%emt 0:00:27]} Kd4 {[%emt 0:00:26]} 59. a5 {[%emt 0:00:27]} 1-0

[Event "9th RTU Rapid 2019"]
[Site "Riga"]
[Date "2019.08.04"]
[Round "9.1"]
[White "Gagare, Shardul"]
[Black "Svane, Rasmus"]
[Result "0-1"]
[ECO "A11"]
[WhiteElo "2430"]
[BlackElo "2612"]
[Annotator "ChessBase"]
[PlyCount "114"]
[EventDate "2019.08.05"]
[EventType "swiss"]
[EventCountry "LAT"]
[SourceTitle "playchess.com"]
[Source "ChessBase"]
[SourceQuality "1"]
[TimeControl "5400+30"]

1. Nf3 {[%emt 1:15:23]} d5 {[%emt 1:15:22]} 2. c4 {[%emt 0:00:26]} c6 {[%emt 0:00:34]} 3. g3 {[%emt 0:00:34]} Nf6 {[%emt 0:00:50]} 4. Bg2 {[%emt 0:00:26]} dxc4 {[%emt 0:00:30]} 5. O-O {[%emt 0:00:32]} Nbd7 {[%emt 0:00:27]} 6. Qc2 {[%emt 0:00:30]} Nb6 {[%emt 0:00:34]} 7. a4 {[%emt 0:00:27]} a5 {[%emt 0:00:30]} 8. Na3 {[%emt 0:00:26]} Qd5 {[%emt 0:01:12]} 9. Ne1 {[%emt 0:00:28]} Bf5 {[%emt 0:00:29]} 10. Bxd5 {[%emt 0:00:30]} Bxc2 {[%emt 0:00:29]} 11. Bxc6+ {[%emt 0:00:28]} bxc6 {[%emt 0:00:26]} 12. Naxc2 {[%emt 0:00:31]} g6 {[%emt 0:00:30]} 13. d3 {[%emt 0:00:27]} Bg7 {[%emt 0:00:32]} 14. Na3 {[%emt 0:00:40]} cxd3 {[%emt 0:01:12]} 15. Nxd3 {[%emt 0:00:27]} O-O {[%emt 0:00:33]} 16. b3 {[%emt 0:01:44]} Nfd5 {[%emt 0:02:08]} 17. Bb2 {[%emt 0:01:16]} Bxb2 {[%emt 0:00:41]} 18. Nxb2 {[%emt 0:00:27]} Rfb8 {[%emt 0:01:59]} 19. Nbc4 {[%emt 0:05:42]} Nd7 {[%emt 0:02:32]} 20. Rab1 {[%emt 0:00:36]} Nc5 {[%emt 0:00:39]} 21. Ne5 {[%emt 0:01:58]} Nc3 {[%emt 0:00:38]} 22. Rb2 {[%emt 0:00:27]} N3xa4 {[%emt 0:02:34]} 23. Rc2 {[%emt 0:00:26]} Rxb3 {[%emt 0:00:26]} 24. Nac4 {[%emt 0:00:27]} Rc3 {[%emt 0:00:47]} 25. Rfc1 {[%emt 0:01:02]} Rxc2 {[%emt 0:00:27]} 26. Rxc2 {[%emt 0:00:26]} Ra6 {[%emt 0:01:27]} 27. Ra2 {[%emt 0:01:03]} f6 {[%emt 0:01:08]} 28. Nd3 {[%emt 0:00:27]} Nxd3 {[%emt 0:01:10]} 29. exd3 {[%emt 0:00:27]} Nc3 {[%emt 0:01:01]} 30. Rxa5 {[%emt 0:00:47]} Rxa5 {[%emt 0:00:26]} 31. Nxa5 {[%emt 0:00:27]} Ne2+ {[%emt 0:00:26]} 32. Kf1 {[%emt 0:00:28]} Nd4 {[%emt 0:00:26]} 33. f4 {[%emt 0:00:37]} Kf7 {[%emt 0:00:28]} 34. Kf2 {[%emt 0:00:30]} Ke6 {[%emt 0:00:28]} 35. Nc4 {[%emt 0:00:37]} Kd5 {[%emt 0:00:33]} 36. Nb6+ {[%emt 0:00:30]} Kd6 {[%emt 0:01:02]} 37. Ke3 {[%emt 0:00:30]} Nc2+ {[%emt 0:00:35]} 38. Kd2 {[%emt 0:00:28]} Nb4 {[%emt 0:00:28]} 39. Nc8+ {[%emt 0:00:56]} Ke6 {[%emt 0:00:33]} 40. Nb6 {[%emt 0:01:37]} Kf5 {[%emt 0:00:26]} 41. h3 {[%emt 0:01:46]} h5 {[%emt 0:00:27]} 42. Nc8 {[%emt 0:00:44]} Nd5 {[%emt 0:00:49]} 43. Na7 {[%emt 0:01:34]} c5 {[%emt 0:00:33]} 44. Nc6 {[%emt 0:00:36]} h4 {[%emt 0:00:55]} 45. gxh4 {[%emt 0:00:26]} Kxf4 {[%emt 0:00:29]} 46. Nd8 {[%emt 0:00:33]} Kg3 {[%emt 0:00:35]} 47. Ne6 {[%emt 0:00:26]} Kxh4 {[%emt 0:00:49]} 48. Nxc5 {[%emt 0:00:32]} Kxh3 {[%emt 0:00:26]} 49. d4 {[%emt 0:00:37]} g5 {[%emt 0:00:41]} 50. Kd3 {[%emt 0:00:35]} g4 {[%emt 0:00:41]} 51. Ne4 {[%emt 0:01:07]} g3 {[%emt 0:00:29]} 52. Nd2 {[%emt 0:00:42]} g2 {[%emt 0:00:32]} 53. Nf3 {[%emt 0:00:27]} Kg3 {[%emt 0:00:28]} 54. Ng1 {[%emt 0:00:26]} f5 {[%emt 0:00:41]} 55. Kc4 {[%emt 0:00:28]} e6 {[%emt 0:00:49]} 56. Kc5 {[%emt 0:00:27]} f4 {[%emt 0:00:27]} 57. Kd6 {[%emt 0:00:27]} f3 {[%emt 0:00:27]} 0-1

[Event "9th RTU Rapid 2019"]
[Site "Riga"]
[Date "2019.08.04"]
[Round "9.2"]
[White "Galchenko, Matvey"]
[Black "Korchmar, Vasiliy"]
[Result "1/2-1/2"]
[ECO "A36"]
[WhiteElo "2360"]
[BlackElo "2413"]
[Annotator "NA"]
[PlyCount "43"]
[EventDate "2019.08.05"]
[EventType "swiss"]
[EventCountry "LAT"]
[SourceTitle "playchess.com"]
[Source "ChessBase"]
[SourceQuality "1"]
[TimeControl "5400+30"]

1. c4 {[%emt 1:15:22]} c5 {[%emt 1:15:21]} 2. Nc3 {[%emt 0:00:28]} Nc6 {[%emt 0:00:28]} 3. g3 {[%emt 0:00:26]} g6 {[%emt 0:00:27]} 4. Bg2 {[%emt 0:00:27]} Bg7 {[%emt 0:00:26]} 5. e3 {[%emt 0:00:48]} e5 {[%emt 0:00:30]} 6. Nge2 {[%emt 0:00:37]} Nge7 {[%emt 0:00:26]} 7. O-O {[%emt 0:00:36]} d6 {[%emt 0:00:26]} 8. Nd5 {[%emt 0:00:34]} O-O {[%emt 0:01:35]} 9. Nec3 {[%emt 0:00:35]} Nxd5 {[%emt 0:00:39]} 10. Nxd5 {[%emt 0:00:28]} Be6 {[%emt 0:00:43]} 11. h3 {[%emt 0:00:46]} Qd7 {[%emt 0:00:42]} 12. Kh2 {[%emt 0:00:25]} f5 {[%emt 0:00:32]} 13. f4 {[%emt 0:01:00]} Ne7 {[%emt 0:01:54]} 14. d3 {[%emt 0:00:41]} Nxd5 {[%emt 0:00:37]} 15. cxd5 {[%emt 0:00:31]} Bf7 {[%emt 0:00:26]} 16. Rb1 {[%emt 0:01:00]} Rac8 {[%emt 0:02:02]} 17. e4 {[%emt 0:02:10]} exf4 {[%emt 0:01:15]} 18. Bxf4 {[%emt 0:00:41]} fxe4 {[%emt 0:00:36]} 19. dxe4 {[%emt 0:00:25]} h6 {[%emt 0:02:35]} 20. h4 {[%emt 0:00:35]} Rce8 {[%emt 0:00:36]} 21. Qd2 {[%emt 0:00:45]} Kh7 {[%emt 0:00:26]} 22. Rf2 {[%emt 0:01:03]} 1/2-1/2

[Event "9th RTU Rapid 2019"]
[Site "Riga"]
[Date "2019.08.04"]
[Round "9.3"]
[White "Pultinevicius, Paulius"]
[Black "Gukesh D"]
[Result "1-0"]
[ECO "A50"]
[WhiteElo "2501"]
[BlackElo "1683"]
[Annotator "ChessBase"]
[PlyCount "133"]
[EventDate "2019.08.05"]
[EventType "swiss"]
[EventCountry "LAT"]
[SourceTitle "playchess.com"]
[Source "ChessBase"]
[SourceQuality "1"]
[TimeControl "5400+30"]

1. d4 {[%emt 1:15:21]} Nf6 {[%emt 1:15:25]} 2. c4 {[%emt 0:00:26]} b6 {[%emt 0:00:36]} 3. Nc3 {[%emt 0:00:38]} Bb7 {[%emt 0:00:27]} 4. d5 {[%emt 0:00:30]} e6 {[%emt 0:00:54]} 5. a3 {[%emt 0:00:26]} exd5 {[%emt 0:01:22]} 6. cxd5 {[%emt 0:00:27]} Bc5 {[%emt 0:00:33]} 7. e4 {[%emt 0:00:29]} O-O {[%emt 0:00:29]} 8. Bd3 {[%emt 0:00:32]} Re8 {[%emt 0:00:39]} 9. Bc2 {[%emt 0:01:18]} c6 {[%emt 0:03:04]} 10. b4 {[%emt 0:01:42]} cxd5 {[%emt 0:01:16]} 11. bxc5 {[%emt 0:00:36]} bxc5 {[%emt 0:00:26]} 12. Rb1 {[%emt 0:01:35]} Ba6 {[%emt 0:01:20]} 13. Nxd5 {[%emt 0:01:01]} Nxe4 {[%emt 0:00:33]} 14. Bxe4 {[%emt 0:01:00]} Rxe4+ {[%emt 0:00:39]} 15. Be3 {[%emt 0:00:41]} Nc6 {[%emt 0:00:53]} 16. Ne2 {[%emt 0:01:13]} Nd4 {[%emt 0:01:33]} 17. Ndc3 {[%emt 0:02:11]} Qa5 {[%emt 0:04:03]} 18. O-O {[%emt 0:00:56]} Ree8 {[%emt 0:02:04]} 19. Re1 {[%emt 0:01:33]} Nxe2+ {[%emt 0:01:14]} 20. Nxe2 {[%emt 0:00:27]} Rab8 {[%emt 0:00:49]} 21. Nf4 {[%emt 0:00:52]} Bc4 {[%emt 0:01:05]} 22. Qxd7 {[%emt 0:01:22]} Qxa3 {[%emt 0:00:31]} 23. Rxb8 {[%emt 0:00:42]} Rxb8 {[%emt 0:00:26]} 24. Qd6 {[%emt 0:00:28]} Re8 {[%emt 0:00:41]} 25. Qc6 {[%emt 0:00:40]} Rd8 {[%emt 0:00:42]} 26. h4 {[%emt 0:00:57]} h6 {[%emt 0:00:42]} 27. Bxc5 {[%emt 0:00:47]} Qc3 {[%emt 0:00:26]} 28. Re8+ {[%emt 0:00:30]} Rxe8 {[%emt 0:00:26]} 29. Qxe8+ {[%emt 0:00:26]} Kh7 {[%emt 0:00:26]} 30. Qe4+ {[%emt 0:00:29]} Kg8 {[%emt 0:00:32]} 31. Bxa7 {[%emt 0:00:35]} Qa1+ {[%emt 0:00:41]} 32. Kh2 {[%emt 0:00:27]} Qxa7 {[%emt 0:00:26]} 33. Qxc4 {[%emt 0:00:28]} Qxf2 {[%emt 0:00:27]} 34. Qc8+ {[%emt 0:00:31]} Kh7 {[%emt 0:00:26]} 35. Qg4 {[%emt 0:00:33]} Qd4 {[%emt 0:00:41]} 36. Qg3 {[%emt 0:00:58]} Qe5 {[%emt 0:00:43]} 37. Kh3 {[%emt 0:01:00]} Qf5+ {[%emt 0:00:31]} 38. Qg4 {[%emt 0:00:28]} Qe5 {[%emt 0:00:26]} 39. Nh5 {[%emt 0:00:41]} Qc3+ {[%emt 0:00:39]} 40. Ng3 {[%emt 0:00:30]} Qa1 {[%emt 0:00:30]} 41. Qe4+ {[%emt 0:00:56]} g6 {[%emt 0:00:27]} 42. h5 {[%emt 0:01:57]} Qc3 {[%emt 0:00:37]} 43. hxg6+ {[%emt 0:00:27]} fxg6 {[%emt 0:00:27]} 44. Qe7+ {[%emt 0:00:27]} Kg8 {[%emt 0:00:26]} 45. Kh2 {[%emt 0:00:33]} Qd2 {[%emt 0:00:33]} 46. Ne4 {[%emt 0:00:38]} Qf4+ {[%emt 0:00:27]} 47. g3 {[%emt 0:00:34]} Qf7 {[%emt 0:00:26]} 48. Qxf7+ {[%emt 0:00:44]} Kxf7 {[%emt 0:00:26]} 49. Kh3 {[%emt 0:00:34]} Ke6 {[%emt 0:00:26]} 50. Kg4 {[%emt 0:00:42]} Ke5 {[%emt 0:00:26]} 51. Nd2 {[%emt 0:00:34]} Kf6 {[%emt 0:00:32]} 52. Ne4+ {[%emt 0:01:04]} Ke5 {[%emt 0:00:26]} 53. Nc3 {[%emt 0:00:31]} Kd4 {[%emt 0:00:35]} 54. Ne2+ {[%emt 0:00:37]} Ke5 {[%emt 0:00:38]} 55. Nf4 {[%emt 0:00:33]} Kf6 {[%emt 0:00:27]} 56. Nd5+ {[%emt 0:00:35]} Ke5 {[%emt 0:00:34]} 57. Nb6 {[%emt 0:00:27]} Ke6 {[%emt 0:00:29]} 58. Kf4 {[%emt 0:00:27]} Kf6 {[%emt 0:00:31]} 59. Nd5+ {[%emt 0:00:28]} Ke6 {[%emt 0:00:27]} 60. Ke4 {[%emt 0:00:27]} Kf7 {[%emt 0:00:45]} 61. Ke5 {[%emt 0:00:27]} Kg7 {[%emt 0:00:28]} 62. Ke6 {[%emt 0:00:29]} h5 {[%emt 0:00:28]} 63. Nf4 {[%emt 0:00:44]} Kh6 {[%emt 0:00:30]} 64. Kf6 {[%emt 0:00:26]} g5 {[%emt 0:00:27]} 65. Ne2 {[%emt 0:00:33]} g4 {[%emt 0:00:37]} 66. Nf4 {[%emt 0:00:31]} h4 {[%emt 0:00:28]} 67. gxh4 {[%emt 0:00:26]} 1-0

[Event "9th RTU Rapid 2019"]
[Site "Riga"]
[Date "2019.08.04"]
[Round "9.4"]
[White "Saduakassova, Dinara"]
[Black "Suleymenov, Alisher"]
[Result "1/2-1/2"]
[ECO "E90"]
[WhiteElo "2437"]
[BlackElo "2348"]
[Annotator "NA"]
[PlyCount "40"]
[EventDate "2019.08.05"]
[EventType "swiss"]
[EventCountry "LAT"]
[SourceTitle "playchess.com"]
[Source "ChessBase"]
[SourceQuality "1"]
[TimeControl "5400+30"]

1. d4 {[%emt 1:15:22]} Nf6 {[%emt 1:16:21]} 2. c4 {[%emt 0:00:26]} c5 {[%emt 0:00:26]} 3. d5 {[%emt 0:00:27]} g6 {[%emt 0:00:26]} 4. Nc3 {[%emt 0:00:27]} Bg7 {[%emt 0:00:26]} 5. e4 {[%emt 0:00:28]} d6 {[%emt 0:00:26]} 6. h3 {[%emt 0:00:33]} O-O {[%emt 0:00:26]} 7. Nf3 {[%emt 0:00:26]} e6 {[%emt 0:00:26]} 8. Be2 {[%emt 0:00:37]} exd5 {[%emt 0:01:02]} 9. exd5 {[%emt 0:00:26]} Bf5 {[%emt 0:01:09]} 10. O-O {[%emt 0:00:28]} Ne4 {[%emt 0:05:19]} 11. Nxe4 {[%emt 0:01:08]} Bxe4 {[%emt 0:00:27]} 12. Ng5 {[%emt 0:01:02]} Bf5 {[%emt 0:00:42]} 13. Bd3 {[%emt 0:01:06]} Bxd3 {[%emt 0:00:49]} 14. Qxd3 {[%emt 0:00:26]} Nd7 {[%emt 0:00:35]} 15. Nf3 {[%emt 0:00:41]} Re8 {[%emt 0:01:21]} 16. Bf4 {[%emt 0:02:39]} Ne5 {[%emt 0:00:36]} 17. Nxe5 {[%emt 0:00:27]} Bxe5 {[%emt 0:00:27]} 18. Bxe5 {[%emt 0:00:30]} Rxe5 {[%emt 0:00:30]} 19. f4 {[%emt 0:00:47]} Re8 {[%emt 0:00:46]} 20. f5 {[%emt 0:00:48]} Qh4 {[%emt 0:01:10]} 1/2-1/2

[Event "9th RTU Rapid 2019"]
[Site "Riga"]
[Date "2019.08.04"]
[Round "9.5"]
[White "Reizniece-Ozola, Dana"]
[Black "Kantans, Toms"]
[Result "0-1"]
[ECO "A31"]
[WhiteElo "2261"]
[BlackElo "2471"]
[Annotator "ChessBase"]
[PlyCount "50"]
[EventDate "2019.08.05"]
[EventType "swiss"]
[EventCountry "LAT"]
[SourceTitle "playchess.com"]
[Source "ChessBase"]
[SourceQuality "1"]
[TimeControl "5400+30"]

1. c4 {[%emt 1:15:21]} c5 {[%emt 1:15:24]} 2. Nf3 {[%emt 0:00:28]} Nc6 {[%emt 0:00:26]} 3. d4 {[%emt 0:00:26]} cxd4 {[%emt 0:00:26]} 4. Nxd4 {[%emt 0:00:27]} Qb6 {[%emt 0:00:34]} 5. Nb3 {[%emt 0:00:56]} e6 {[%emt 0:00:30]} 6. Nc3 {[%emt 0:00:32]} Nf6 {[%emt 0:00:43]} 7. e3 {[%emt 0:01:22]} d5 {[%emt 0:01:53]} 8. cxd5 {[%emt 0:00:54]} exd5 {[%emt 0:00:31]} 9. Be2 {[%emt 0:01:16]} Be6 {[%emt 0:01:05]} 10. O-O {[%emt 0:00:28]} Be7 {[%emt 0:00:49]} 11. Nb5 {[%emt 0:01:01]} O-O {[%emt 0:01:04]} 12. N5d4 {[%emt 0:00:48]} Bd7 {[%emt 0:00:37]} 13. Nf3 {[%emt 0:01:32]} Rac8 {[%emt 0:01:10]} 14. Nbd4 {[%emt 0:00:52]} Ne4 {[%emt 0:01:32]} 15. Nxc6 {[%emt 0:01:41]} bxc6 {[%emt 0:00:34]} 16. Ne5 {[%emt 0:00:56]} Be6 {[%emt 0:00:45]} 17. f3 {[%emt 0:02:22]} Nd6 {[%emt 0:01:14]} 18. Rb1 {[%emt 0:01:35]} Nf5 {[%emt 0:01:26]} 19. Qb3 {[%emt 0:01:38]} Qxb3 {[%emt 0:01:15]} 20. axb3 {[%emt 0:00:26]} Bc5 {[%emt 0:00:32]} 21. Kf2 {[%emt 0:00:59]} d4 {[%emt 0:00:29]} 22. Nd3 {[%emt 0:01:23]} dxe3+ {[%emt 0:00:28]} 23. Ke1 {[%emt 0:00:29]} Bb6 {[%emt 0:00:26]} 24. g4 {[%emt 0:00:37]} Nd4 {[%emt 0:00:39]} 25. Ne5 {[%emt 0:00:59]} Ba5+ {[%emt 0:01:14]} 0-1

[Event "9th RTU Rapid 2019"]
[Site "Riga"]
[Date "2019.08.04"]
[Round "9.6"]
[White "Vedrickas, Tautvydas"]
[Black "Krivonosov, Oleg"]
[Result "0-1"]
[ECO "D35"]
[WhiteElo "2231"]
[BlackElo "2445"]
[Annotator "NA"]
[PlyCount "130"]
[EventDate "2019.08.05"]
[EventType "swiss"]
[EventCountry "LAT"]
[SourceTitle "playchess.com"]
[Source "ChessBase"]
[SourceQuality "1"]
[TimeControl "5400+30"]

1. d4 {[%emt 1:15:24]} d5 {[%emt 1:15:20]} 2. c4 {[%emt 0:00:29]} e6 {[%emt 0:00:26]} 3. Nc3 {[%emt 0:00:27]} Be7 {[%emt 0:00:26]} 4. Nf3 {[%emt 0:00:30]} Nf6 {[%emt 0:00:26]} 5. cxd5 {[%emt 0:00:31]} exd5 {[%emt 0:00:26]} 6. Bg5 {[%emt 0:00:29]} c6 {[%emt 0:00:27]} 7. e3 {[%emt 0:00:27]} Bf5 {[%emt 0:00:27]} 8. Be2 {[%emt 0:02:40]} Nbd7 {[%emt 0:00:35]} 9. h3 {[%emt 0:01:04]} h6 {[%emt 0:00:31]} 10. Bf4 {[%emt 0:00:28]} Ne4 {[%emt 0:00:31]} 11. Nxe4 {[%emt 0:01:10]} Bxe4 {[%emt 0:00:28]} 12. Nd2 {[%emt 0:01:08]} Bh7 {[%emt 0:00:40]} 13. O-O {[%emt 0:00:41]} O-O {[%emt 0:00:27]} 14. Rc1 {[%emt 0:01:46]} Qb6 {[%emt 0:00:39]} 15. Qb3 {[%emt 0:02:04]} Qxb3 {[%emt 0:00:30]} 16. Nxb3 {[%emt 0:00:26]} a5 {[%emt 0:00:28]} 17. a4 {[%emt 0:00:53]} Bb4 {[%emt 0:00:35]} 18. Nc5 {[%emt 0:01:36]} Nxc5 {[%emt 0:00:41]} 19. dxc5 {[%emt 0:00:27]} Bf5 {[%emt 0:00:52]} 20. Rfd1 {[%emt 0:00:30]} Rfe8 {[%emt 0:00:36]} 21. Bd6 {[%emt 0:01:07]} Rad8 {[%emt 0:00:45]} 22. Rd4 {[%emt 0:00:50]} Re4 {[%emt 0:01:00]} 23. Rxe4 {[%emt 0:01:11]} Bxe4 {[%emt 0:00:27]} 24. Bg4 {[%emt 0:00:34]} Bd3 {[%emt 0:00:41]} 25. h4 {[%emt 0:01:16]} g6 {[%emt 0:00:49]} 26. h5 {[%emt 0:00:46]} f5 {[%emt 0:00:36]} 27. Bh3 {[%emt 0:01:16]} gxh5 {[%emt 0:01:21]} 28. Rd1 {[%emt 0:00:29]} Bc2 {[%emt 0:01:00]} 29. Rc1 {[%emt 0:00:51]} Be4 {[%emt 0:01:23]} 30. Kh2 {[%emt 0:00:53]} Kf7 {[%emt 0:00:58]} 31. f3 {[%emt 0:01:28]} Bd3 {[%emt 0:00:49]} 32. Rd1 {[%emt 0:00:28]} Bc2 {[%emt 0:00:35]} 33. Rd4 {[%emt 0:00:35]} Kg6 {[%emt 0:02:06]} 34. Kg1 {[%emt 0:01:22]} Re8 {[%emt 0:01:27]} 35. Kf2 {[%emt 0:00:29]} Re6 {[%emt 0:01:12]} 36. g4 {[%emt 0:00:56]} hxg4 {[%emt 0:01:27]} 37. fxg4 {[%emt 0:00:26]} Be4 {[%emt 0:00:40]} 38. gxf5+ {[%emt 0:00:41]} Bxf5 {[%emt 0:00:26]} 39. Bxf5+ {[%emt 0:00:30]} Kxf5 {[%emt 0:00:26]} 40. Rf4+ {[%emt 0:00:26]} Kg6 {[%emt 0:00:26]} 41. Ke2 {[%emt 0:00:35]} b6 {[%emt 0:00:52]} 42. Rf8 {[%emt 0:00:33]} bxc5 {[%emt 0:00:54]} 43. Bf4 {[%emt 0:00:26]} c4 {[%emt 0:00:41]} 44. Rg8+ {[%emt 0:00:27]} Kh7 {[%emt 0:00:35]} 45. Ra8 {[%emt 0:00:28]} d4 {[%emt 0:00:35]} 46. Rd8 {[%emt 0:00:39]} d3+ {[%emt 0:00:27]} 47. Kf3 {[%emt 0:00:28]} Rg6 {[%emt 0:01:06]} 48. Rd7+ {[%emt 0:00:28]} Rg7 {[%emt 0:00:33]} 49. Rd4 {[%emt 0:00:28]} Rg1 {[%emt 0:00:45]} 50. e4 {[%emt 0:00:28]} Kg6 {[%emt 0:01:05]} 51. Rxc4 {[%emt 0:00:36]} d2 {[%emt 0:00:26]} 52. Rxc6+ {[%emt 0:00:27]} Kf7 {[%emt 0:00:34]} 53. Rc7+ {[%emt 0:00:35]} Ke8 {[%emt 0:00:33]} 54. Bxd2 {[%emt 0:00:31]} Bxd2 {[%emt 0:00:26]} 55. Ke2 {[%emt 0:00:29]} Bb4 {[%emt 0:00:36]} 56. Kd3 {[%emt 0:00:31]} Rd1+ {[%emt 0:00:35]} 57. Ke3 {[%emt 0:00:27]} Rd7 {[%emt 0:00:32]} 58. Rc6 {[%emt 0:00:26]} Rd6 {[%emt 0:00:31]} 59. Rc7 {[%emt 0:00:26]} Rd7 {[%emt 0:00:35]} 60. Rc6 {[%emt 0:00:26]} Rh7 {[%emt 0:00:27]} 61. Ra6 {[%emt 0:00:31]} h5 {[%emt 0:00:31]} 62. Kf3 {[%emt 0:00:29]} h4 {[%emt 0:00:39]} 63. Ra8+ {[%emt 0:00:38]} Kf7 {[%emt 0:00:26]} 64. Kg2 {[%emt 0:00:29]} h3+ {[%emt 0:00:30]} 65. Kh1 {[%emt 0:00:30]} Rh4 {[%emt 0:00:47]} 0-1

[Event "9th RTU Rapid 2019"]
[Site "Riga"]
[Date "2019.08.04"]
[Round "9.7"]
[White "Chibukhchyan, Erik"]
[Black "Omelja, Artem"]
[Result "0-1"]
[ECO "C05"]
[WhiteElo "2231"]
[BlackElo "2436"]
[Annotator "NA"]
[PlyCount "86"]
[EventDate "2019.08.05"]
[EventType "swiss"]
[EventCountry "LAT"]
[SourceTitle "playchess.com"]
[Source "ChessBase"]
[SourceQuality "1"]
[TimeControl "5400+30"]

1. e4 {[%emt 1:15:21]} e6 {[%emt 1:15:21]} 2. d4 {[%emt 0:00:26]} d5 {[%emt 0:00:26]} 3. Nd2 {[%emt 0:00:26]} Nf6 {[%emt 0:00:27]} 4. e5 {[%emt 0:00:28]} Nfd7 {[%emt 0:00:26]} 5. f4 {[%emt 0:00:27]} b6 {[%emt 0:00:36]} 6. g3 {[%emt 0:00:32]} c5 {[%emt 0:00:40]} 7. c3 {[%emt 0:00:26]} Ba6 {[%emt 0:00:28]} 8. Ndf3 {[%emt 0:01:06]} Bxf1 {[%emt 0:00:32]} 9. Kxf1 {[%emt 0:00:25]} Nc6 {[%emt 0:00:26]} 10. Kg2 {[%emt 0:00:26]} b5 {[%emt 0:00:38]} 11. Ne2 {[%emt 0:00:31]} g6 {[%emt 0:00:33]} 12. g4 {[%emt 0:00:27]} h5 {[%emt 0:00:28]} 13. h3 {[%emt 0:00:26]} Qb6 {[%emt 0:00:38]} 14. Be3 {[%emt 0:00:34]} b4 {[%emt 0:00:33]} 15. Rf1 {[%emt 0:00:55]} bxc3 {[%emt 0:00:37]} 16. bxc3 {[%emt 0:00:27]} Na5 {[%emt 0:00:26]} 17. Nd2 {[%emt 0:00:35]} hxg4 {[%emt 0:00:41]} 18. hxg4 {[%emt 0:00:26]} Qb5 {[%emt 0:00:29]} 19. Rf3 {[%emt 0:01:17]} Nb6 {[%emt 0:00:28]} 20. dxc5 {[%emt 0:00:39]} Bxc5 {[%emt 0:00:43]} 21. Rb1 {[%emt 0:00:26]} Qc6 {[%emt 0:00:30]} 22. Bxc5 {[%emt 0:00:42]} Qxc5 {[%emt 0:00:27]} 23. Nd4 {[%emt 0:00:26]} Nac4 {[%emt 0:00:34]} 24. Nxc4 {[%emt 0:00:32]} Qxc4 {[%emt 0:00:32]} 25. Qd2 {[%emt 0:00:55]} Kd7 {[%emt 0:00:48]} 26. Rb4 {[%emt 0:00:30]} Qc5 {[%emt 0:00:29]} 27. Nb3 {[%emt 0:02:33]} Qe7 {[%emt 0:00:27]} 28. Qf2 {[%emt 0:01:00]} Qh4 {[%emt 0:00:37]} 29. Qxh4 {[%emt 0:00:54]} Rxh4 {[%emt 0:00:27]} 30. f5 {[%emt 0:06:13]} gxf5 {[%emt 0:00:55]} 31. gxf5 {[%emt 0:00:26]} Rg8+ {[%emt 0:00:26]} 32. Rg3 {[%emt 0:00:45]} Rxg3+ {[%emt 0:00:27]} 33. Kxg3 {[%emt 0:00:26]} Rh5 {[%emt 0:00:26]} 34. Nd4 {[%emt 0:01:33]} Rg5+ {[%emt 0:01:02]} 35. Kf2 {[%emt 0:00:37]} Rh5 {[%emt 0:01:07]} 36. Kg2 {[%emt 0:00:26]} exf5 {[%emt 0:00:56]} 37. a4 {[%emt 0:00:27]} Kc8 {[%emt 0:02:03]} 38. a5 {[%emt 0:01:06]} Nc4 {[%emt 0:00:27]} 39. a6 {[%emt 0:00:28]} Rh6 {[%emt 0:01:00]} 40. Nxf5 {[%emt 0:00:28]} Rxa6 {[%emt 0:00:31]} 41. Ne7+ {[%emt 0:00:28]} Kd7 {[%emt 0:00:26]} 42. Nxd5 {[%emt 0:00:31]} Nxe5 {[%emt 0:00:32]} 43. Rb7+ {[%emt 0:00:28]} Kc6 {[%emt 0:00:32]} 0-1